fUST/lending_fUST_20260107
["ID","MTS","AMOUNT","RATE_DAILY","PERIOD"]
[400650637,1767766251156,-2046.328328,0.00037275,31]
[400650638,1767766251165,-2046.328328,0.00037275,31]
[400650639,1767766251174,-2046.328328,0.00037275,31]
[400650640,1767766251183,-2046.328328,0.00037275,31]
[400650641,1767766251193,-154852.2756286,0.00037275,7]
[400650642,1767766251801,-1208.40641681,0.00012929,2]
[400650643,1767766251813,-892.72,0.00012929,2]
[400650645,1767766557335,-313.318,0.00012639,2]
[400650646,1767766662722,165.66,7.744e-05,2]
[400650647,1767766663161,198.79,8.054e-05,2]
[400650648,1767766663591,231.92,8.363e-05,2]
[400650649,1767766664014,265.06,8.673e-05,2]
[400650650,1767766664428,298.19,8.983e-05,2]
[400650651,1767766664832,331.32,9.293e-05,2]
[400650652,1767766688261,3451.0202148,0.00011965,2]
[400650653,1767766723491,4431.4137852,0.00012639,2]
[400650654,1767766723514,568.5862148,0.00012639,2]
[400650655,1767766725686,9431.4237852,0.0001187,2]
[400650656,1767766725709,568.5762148,0.0001187,2]
[400650657,1767766734931,165.3,9.069e-05,2]
[400650658,1767766746450,5000.0,0.00012639,2]
[400650659,1767766754364,4266.1337852,0.00012639,2]
[400650660,1767766754389,733.8662148,0.00012639,2]
[400650661,1767766762784,5000.0,0.00012639,2]
[400650662,1767766792208,4266.1437852,0.00012639,2]
[400650663,1767766792232,733.8562148,0.00012639,2]
[400650664,1767766801318,170.68,7.255e-05,2]
[400650665,1767766801753,227.57,7.571e-05,2]
[400650666,1767766802685,284.47,7.886e-05,2]
[400650667,1767766803215,341.36,8.202e-05,2]
[400650668,1767766803568,398.26,8.517e-05,2]
[400650669,1767766804094,455.15,8.833e-05,2]
[400650670,1767766804713,512.04,9.148e-05,2]
[400650671,1767766804919,599.0,0.00012639,2]
[400650672,1767766805138,568.94,9.463e-05,2]
[400650673,1767766807967,5000.0,0.00012639,2]
[400650674,1767766830978,708.6837852,0.00012639,2]
[400650675,1767766831008,4291.3162148,0.00012639,2]
[400650676,1767766839377,5000.0,0.00012639,2]
[400650677,1767766847468,708.6937852,0.00012639,2]
[400650678,1767766847494,3514.42483631,0.00012639,2]
[400650679,1767766874823,163.14,7.536e-05,2]
[400650680,1767766875126,203.92,7.85e-05,2]
[400650681,1767766875552,244.71,8.164e-05,2]
[400650682,1767766875962,285.49,8.478e-05,2]
[400650683,1767766876417,326.27,8.792e-05,2]
[400650684,1767766876821,367.06,9.106e-05,2]
[400650685,1767766877255,407.84,9.42e-05,2]
[400650686,1767766878292,5000.0,0.00012639,2]
[400650687,1767766887210,3001.58,0.00012639,2]
[400650688,1767766887234,1998.42,0.00012639,2]
[400650690,1767766902038,5000.0,0.00012639,2]
[400650691,1767766932676,1657.40782459,0.00012639,2]
[400650692,1767766944331,191.29,6.572e-05,2]
[400650693,1767766944759,382.58,6.885e-05,2]
[400650694,1767766945179,573.87,7.198e-05,2]
[400650695,1767766945599,196.44217541,7.511e-05,2]
[400650696,1767766945625,568.71782459,7.511e-05,2]
[400650697,1767766946109,956.46,7.824e-05,2]
[400650698,1767766946474,1147.75,8.137e-05,2]
[400650699,1767766946882,1339.04,8.45e-05,2]
[400650700,1767766947296,1530.33,8.763e-05,2]
[400650701,1767766947704,1721.62,9.076e-05,2]
[400650702,1767766948117,1912.91,9.389e-05,2]
[400650703,1767766948196,823.18217541,0.0001262,2]
[400650704,1767766948219,4.81782459,0.0001262,2]
[400650705,1767766951556,206.58822789,0.0001262,2]
[400650706,1767766952515,500.0,0.0001262,2]
[400650707,1767766954103,205.11506446,0.0001262,2]
[400650708,1767766955954,206.93396623,0.0001262,2]
[400650709,1767766956676,173.9915,0.00030136,120]
[400650710,1767766963486,500.0,0.00012639,2]
[400650711,1767766970266,5000.0,0.00012639,2]
[400650712,1767766978604,5000.0,0.00012639,2]
[400650713,1767767001099,0.01,0.00012639,2]
[400650714,1767767001122,3342.59217541,0.00012639,2]
[400650715,1767767022463,202.34,6.8e-05,2]
[400650716,1767767022889,303.52,7.109e-05,2]
[400650717,1767767023324,404.69,7.418e-05,2]
[400650718,1767767023561,3846.54330237,0.00012639,2]
[400650719,1767767023745,505.86,7.727e-05,2]
[400650720,1767767024172,607.03,8.036e-05,2]
[400650721,1767767024577,708.21,8.346e-05,2]
[400650722,1767767025016,79.22452222,8.655e-05,2]
[400650723,1767767025043,730.15547778,8.655e-05,2]
[400650724,1767767025497,910.55,8.964e-05,2]
[400650725,1767767025909,1011.72,9.273e-05,2]
[400650726,1767767100981,158.2,7.888e-05,2]
[400650727,1767767101409,189.84,8.204e-05,2]
[400650728,1767767101795,221.47,8.519e-05,2]
[400650729,1767767102224,253.11,8.835e-05,2]
[400650730,1767767102635,284.75,9.15e-05,2]
[400650731,1767767103047,316.39,9.466e-05,2]
[400650734,1767767279724,4240.13452259,0.00012639,2]
[400650735,1767767283479,794.0,0.00012617,2]
[400650737,1767767288633,1927.7636651,0.0001,2]
[400650739,1767767296719,289.07303095,0.0001,2]
[400650740,1767767313554,2749.03878136,0.0001,2]
[400650741,1767767313578,7263.92770811,0.0001,2]
[400650742,1767767314090,531.98749874,0.0001,2]
[400650743,1767767367219,2204.09479315,0.00012639,2]
[400650744,1767767367248,1651.34819412,0.00012639,2]
[400650767,1767767432400,-300.0,0.00012696,2]
[400650769,1767767432410,-300.0,0.00012696,2]
[400650771,1767767432420,-300.0,0.00012696,2]
[400650773,1767767432430,-300.0,0.00012696,2]
[400650774,1767767432439,-216.56516803,0.00012696,2]
[400650775,1767767432449,-3692.73493805,0.00012697,2]
[400650776,1767767432460,-4485.65774862,0.00012697,2]
[400650777,1767767432471,-2214.4084473,0.00012697,2]
[400650778,1767767432482,-472.883932,0.00012697,2]
[400650779,1767767432514,-78592.89037918,0.00012697,2]
[400650780,1767767432526,-330.25242726,0.00012697,2]
[400650782,1767767432536,-1330.10052848,0.00012697,2]
[400650825,1767767438560,-5829.89252433,0.00012697,2]
[400650829,1767767438699,-5723.9268332,0.00012697,2]
[400650830,1767767438710,-897327.25224158,0.00012697,2]
[400650831,1767767438719,-156.59896823,0.00012754,2]
[400650832,1767767438729,-794.0,0.00012754,2]
[400650833,1767767438738,-571.60339535,0.00012757,2]
[400650834,1767767438747,-156.51468923,0.00012757,2]
[400650835,1767767438756,-154.44367784,0.00012757,2]
[400650836,1767767438766,-228.70076657,0.00012794,2]
[400650837,1767767438775,-500.0,0.00012795,2]
[400650838,1767767438784,-487.00892918,0.00012795,2]
[400650839,1767767438793,-500.0,0.00012795,2]
[400650840,1767767438802,-500.0,0.00012795,2]
[400650841,1767767438811,-500.0,0.00012795,2]
[400650842,1767767438820,-500.0,0.00012795,2]
[400650843,1767767438830,-386.21075817,0.00012795,2]
[400650844,1767767438839,-746.7081512,0.00012795,2]
[400650845,1767767438848,-500.0,0.00012795,2]
[400650846,1767767438857,-500.0,0.00012795,2]
[400650847,1767767438866,-500.0,0.00012795,2]
[400650848,1767767438875,-500.0,0.00012795,2]
[400650849,1767767438883,-500.0,0.00012795,2]
[400650850,1767767438892,-500.0,0.00012795,2]
[400650851,1767767438901,-500.0,0.00012795,2]
[400650852,1767767438910,-500.0,0.00012795,2]
[400650853,1767767438919,-746.7081512,0.00012795,2]
[400650854,1767767438928,-377.68591868,0.00012795,2]
[400650855,1767767438937,-500.0,0.00012795,2]
[400650856,1767767438947,-500.0,0.00012795,2]
[400650858,1767767438956,-476.7682238,0.00012795,2]
[400650860,1767767438967,-498.70680864,0.00012795,2]
[400650862,1767767438976,-500.0,0.00012795,2]
[400650864,1767767438986,-500.0,0.00012795,2]
[400650866,1767767438995,-746.7081512,0.00012795,2]
[400650869,1767767439004,-500.0,0.00012795,2]
[400650870,1767767439014,-500.0,0.00012795,2]
[400650872,1767767439023,-500.0,0.00012795,2]
[400650874,1767767439032,-746.7081512,0.00012795,2]
[400650877,1767767439042,-500.0,0.00012795,2]
[400650879,1767767439052,-500.0,0.00012795,2]
[400650880,1767767439061,-500.0,0.00012795,2]
[400650882,1767767439071,-500.0,0.00012795,2]
[400650884,1767767439081,-746.7081512,0.00012795,2]
[400650886,1767767439090,-500.0,0.00012795,2]
[400650889,1767767439099,-500.0,0.00012795,2]
[400650891,1767767439109,-500.0,0.00012795,2]
[400650893,1767767439118,-500.0,0.00012795,2]
[400650894,1767767439127,-500.0,0.00012795,2]
[400650896,1767767439136,-746.7081512,0.00012795,2]
[400650898,1767767439146,-500.0,0.00012795,2]
[400650900,1767767439155,-500.0,0.00012795,2]
[400650913,1767767439299,-297.48170987,0.00012795,2]
[400650915,1767767439310,-500.0,0.00012795,2]
[400650917,1767767439320,-746.7081512,0.00012795,2]
[400650919,1767767439331,-500.0,0.00012795,2]
[400650921,1767767439341,-500.0,0.00012795,2]
[400650923,1767767439351,-500.0,0.00012795,2]
[400650925,1767767439361,-500.0,0.00012795,2]
[400650927,1767767439370,-746.7081512,0.00012795,2]
[400650929,1767767439380,-500.0,0.00012795,2]
[400650931,1767767439391,-500.0,0.00012795,2]
[400650933,1767767439401,-500.0,0.00012795,2]
[400650935,1767767439410,-500.0,0.00012795,2]
[400650937,1767767439420,-746.7081512,0.00012795,2]
[400650939,1767767439430,-500.0,0.00012795,2]
[400650941,1767767439440,-500.0,0.00012795,2]
[400650943,1767767439451,-500.0,0.00012795,2]
[400650945,1767767439470,-500.0,0.00012795,2]
[400650947,1767767439490,-746.7081512,0.00012795,2]
[400650949,1767767439511,-500.0,0.00012795,2]
[400650951,1767767439520,-500.0,0.00012795,2]
[400650953,1767767439531,-746.7081512,0.00012795,2]
[400650954,1767767439542,-500.0,0.00012795,2]
[400650956,1767767439553,-500.0,0.00012795,2]
[400650958,1767767439564,-746.7081512,0.00012795,2]
[400650960,1767767439573,-500.0,0.00012795,2]
[400650962,1767767439583,-500.0,0.00012795,2]
[400650964,1767767439594,-746.7081512,0.00012795,2]
[400650967,1767767439605,-500.0,0.00012795,2]
[400650968,1767767439615,-500.0,0.00012795,2]
[400650970,1767767439626,-500.0,0.00012795,2]
[400650973,1767767439639,-500.0,0.00012795,2]
[400650975,1767767439650,-746.7081512,0.00012795,2]
[400650977,1767767439661,-746.7081512,0.00012795,2]
[400650979,1767767439672,-500.0,0.00012795,2]
[400650981,1767767439681,-500.0,0.00012795,2]
[400650983,1767767439690,-746.7081512,0.00012795,2]
[400650985,1767767439701,-500.0,0.00012795,2]
[400650987,1767767439711,-500.0,0.00012795,2]
[400650989,1767767439720,-500.0,0.00012795,2]
[400650991,1767767439731,-470.29600869,0.00012795,2]
[400650993,1767767439740,-746.7081512,0.00012795,2]
[400650995,1767767439749,-500.0,0.00012795,2]
[400650997,1767767439758,-746.7081512,0.00012795,2]
[400650999,1767767439768,-500.0,0.00012795,2]
[400651001,1767767439777,-500.0,0.00012795,2]
[400651003,1767767439789,-746.7081512,0.00012795,2]
[400651005,1767767439797,-746.7081512,0.00012795,2]
[400651007,1767767439810,-500.0,0.00012795,2]
[400651009,1767767439819,-500.0,0.00012795,2]
[400651011,1767767439828,-746.7081512,0.00012795,2]
[400651013,1767767439838,-500.0,0.00012795,2]
[400651014,1767767439850,-746.7081512,0.00012795,2]
[400651017,1767767439862,-746.7081512,0.00012795,2]
[400651019,1767767439872,-746.7081512,0.00012795,2]
[400651021,1767767439882,-746.7081512,0.00012795,2]
[400651023,1767767439895,-746.7081512,0.00012795,2]
[400651025,1767767439910,-746.7081512,0.00012795,2]
[400651027,1767767439922,-746.7081512,0.00012795,2]
[400651029,1767767439932,-746.7081512,0.00012795,2]
[400651031,1767767439944,-746.7081512,0.00012795,2]
[400651033,1767767439955,-746.7081512,0.00012795,2]
[400651035,1767767439966,-746.7081512,0.00012795,2]
[400651037,1767767439978,-746.7081512,0.00012795,2]
[400651039,1767767439990,-746.7081512,0.00012795,2]
[400651041,1767767440002,-746.7081512,0.00012795,2]
[400651043,1767767440013,-746.7081512,0.00012795,2]
[400651045,1767767440022,-746.7081512,0.00012795,2]
[400651047,1767767440032,-746.7081512,0.00012795,2]
[400651048,1767767440041,-746.7081512,0.00012795,2]
[400651050,1767767440050,-746.7081512,0.00012795,2]
[400651051,1767767440059,-746.7081512,0.00012795,2]
[400651052,1767767440068,-746.7081512,0.00012795,2]
[400651053,1767767440078,-746.7081512,0.00012795,2]
[400651054,1767767440087,-746.7081512,0.00012795,2]
[400651055,1767767440096,-746.7081512,0.00012795,2]
[400651056,1767767440106,-746.7081512,0.00012795,2]
[400651057,1767767440115,-746.7081512,0.00012795,2]
[400651058,1767767440125,-746.7081512,0.00012795,2]
[400651059,1767767440135,-746.7081512,0.00012795,2]
[400651060,1767767440145,-746.7081512,0.00012795,2]
[400651061,1767767440154,-746.7081512,0.00012795,2]
[400651062,1767767440164,-746.7081512,0.00012795,2]
[400651063,1767767440174,-746.7081512,0.00012795,2]
[400651064,1767767440185,-746.7081512,0.00012795,2]
[400651065,1767767440195,-746.7081512,0.00012795,2]
[400651066,1767767440205,-746.7081512,0.00012795,2]
[400651068,1767767440214,-746.7081512,0.00012795,2]
[400651070,1767767440223,-746.7081512,0.00012795,2]
[400651072,1767767440233,-746.7081512,0.00012795,2]
[400651073,1767767440242,-746.7081512,0.00012795,2]
[400651074,1767767440255,-746.7081512,0.00012795,2]
[400651075,1767767440265,-746.7081512,0.00012795,2]
[400651076,1767767440274,-746.7081512,0.00012795,2]
[400651077,1767767440283,-746.7081512,0.00012795,2]
[400651078,1767767440295,-746.7081512,0.00012795,2]
[400651079,1767767440304,-746.7081512,0.00012795,2]
[400651080,1767767440315,-746.7081512,0.00012795,2]
[400651082,1767767440326,-746.7081512,0.00012795,2]
[400651084,1767767440335,-746.7081512,0.00012795,2]
[400651086,1767767440344,-746.7081512,0.00012795,2]
[400651087,1767767440354,-746.7081512,0.00012795,2]
[400651088,1767767440363,-746.7081512,0.00012795,2]
[400651089,1767767440372,-746.7081512,0.00012795,2]
[400651090,1767767440381,-746.7081512,0.00012795,2]
[400651091,1767767440390,-746.7081512,0.00012795,2]
[400651092,1767767440400,-746.7081512,0.00012795,2]
[400651093,1767767440410,-746.7081512,0.00012795,2]
[400651094,1767767440419,-746.7081512,0.00012795,2]
[400651095,1767767440428,-746.7081512,0.00012795,2]
[400651096,1767767440438,-746.7081512,0.00012795,2]
[400651097,1767767440447,-746.7081512,0.00012795,2]
[400651098,1767767440456,-746.7081512,0.00012795,2]
[400651099,1767767440466,-746.7081512,0.00012795,2]
[400651100,1767767440475,-746.7081512,0.00012795,2]
[400651101,1767767440484,-746.7081512,0.00012795,2]
[400651102,1767767440493,-746.7081512,0.00012795,2]
[400651103,1767767440502,-746.7081512,0.00012795,2]
[400651104,1767767440511,-50000.0,0.00012795,2]
[400651105,1767767440520,-500.0,0.00012796,2]
[400651106,1767767440529,-500.0,0.00012796,2]
[400651107,1767767440539,-500.0,0.00012796,2]
[400651108,1767767440549,-500.0,0.00012796,2]
[400651109,1767767440557,-500.0,0.00012796,2]
[400651110,1767767440567,-500.0,0.00012796,2]
[400651111,1767767440576,-283.27829345,0.00012796,2]
[400651112,1767767440585,-500.0,0.00012796,2]
[400651113,1767767440594,-500.0,0.00012796,2]
[400651114,1767767440603,-500.0,0.00012796,2]
[400651115,1767767440613,-500.0,0.00012796,2]
[400651116,1767767440622,-565.38226931,0.00012796,2]
[400651117,1767767440632,-500.0,0.00012796,2]
[400651118,1767767440641,-500.0,0.00012796,2]
[400651119,1767767440650,-500.0,0.00012796,2]
[400651120,1767767440659,-500.0,0.00012796,2]
[400651121,1767767440668,-500.0,0.00012796,2]
[400651122,1767767440676,-210.84496672,0.00012796,2]
[400651123,1767767440686,-500.0,0.00012796,2]
[400651124,1767767440695,-500.0,0.00012796,2]
[400651125,1767767440704,-500.0,0.00012796,2]
[400651126,1767767440713,-500.0,0.00012796,2]
[400651127,1767767440722,-500.0,0.00012796,2]
[400651128,1767767440731,-500.0,0.00012796,2]
[400651129,1767767440741,-350.0,0.00012796,2]
[400651130,1767767440749,-289.51135674,0.00012796,2]
[400651131,1767767440758,-500.0,0.00012796,2]
[400651132,1767767440767,-217.82003234,0.00012796,2]
[400651133,1767767440776,-500.0,0.00012796,2]
[400651134,1767767440785,-500.0,0.00012796,2]
[400651135,1767767440794,-5416.70070875,0.000128,2]
[400651136,1767767440803,-200.0,0.0001289,2]
[400651137,1767767440812,-794.0,0.00012891,2]
[400651138,1767767440821,-328.984,0.00012891,2]
[400651139,1767767440830,-184.361,0.00012891,2]
[400651140,1767767440839,-152.02997996,0.00012893,2]
[400651141,1767767440848,-208.63138179,0.00012894,2]
[400651142,1767767440857,-200.0,0.00012894,2]
[400651143,1767767440866,-151.0,0.000129,2]
[400651144,1767767440875,-151.0,0.000129,2]
[400651145,1767767440884,-151.0,0.000129,2]
[400651146,1767767440893,-151.0,0.000129,2]
[400651147,1767767440903,-151.0,0.000129,2]
[400651148,1767767440912,-161.30460818,0.00013027,2]
[400651149,1767767440921,-794.0,0.00013028,2]
[400651150,1767767440930,-152.28064023,0.0001303,2]
[400651151,1767767440939,-177.57781539,0.00013031,2]
[400651152,1767767440948,-500.0,0.0001307,2]
[400651153,1767767440957,-794.0,0.00013165,2]
[400651154,1767767440966,-206.74458148,0.00013168,2]
[400651155,1767767440975,-152.11288876,0.00013168,2]
[400651156,1767767440983,-300.0,0.00013255,2]
[400651157,1767767440992,-300.0,0.00013255,2]
[400651158,1767767441001,-300.0,0.00013255,2]
[400651159,1767767441011,-300.0,0.00013255,2]
[400651160,1767767441019,-300.0,0.00013255,2]
[400651161,1767767441029,-300.0,0.00013255,2]
[400651162,1767767441038,-300.0,0.00013255,2]
[400651163,1767767441047,-300.0,0.00013255,2]
[400651164,1767767441056,-300.0,0.00013255,2]
[400651165,1767767441065,-300.0,0.00013255,2]
[400651166,1767767441074,-300.0,0.00013255,2]
[400651167,1767767441083,-300.0,0.00013255,2]
[400651168,1767767441092,-300.0,0.00013255,2]
[400651169,1767767441101,-300.0,0.00013255,2]
[400651170,1767767441110,-300.0,0.00013255,2]
[400651171,1767767441119,-600.0,0.00013255,2]
[400651172,1767767441128,-500.0,0.00013273,2]
[400651173,1767767441137,-500.0,0.00013273,2]
[400651174,1767767441147,-500.0,0.00013273,2]
[400651175,1767767441155,-500.0,0.00013273,2]
[400651176,1767767441164,-500.0,0.00013273,2]
[400651177,1767767441174,-500.0,0.00013273,2]
[400651178,1767767441183,-500.0,0.00013273,2]
[400651179,1767767441192,-500.0,0.00013273,2]
[400651180,1767767441201,-500.0,0.00013273,2]
[400651181,1767767441210,-500.0,0.00013273,2]
[400651182,1767767441219,-794.0,0.00013302,2]
[400651183,1767767441227,-500.0,0.00013344,2]
[400651184,1767767441236,-794.0,0.00013439,2]
[400651185,1767767441245,-794.0,0.00013576,2]
[400651186,1767767441258,-8045.68317559,0.00013599,2]
[400651187,1767767441267,-500.0,0.00013618,2]
[400651188,1767767441278,-300.0,0.00013673,2]
[400651189,1767767441287,-500.0,0.00013698,2]
[400651190,1767767441300,-500.0,0.00013698,2]
[400651191,1767767441310,-500.0,0.00013698,2]
[400651192,1767767441319,-454.13713192,0.00013698,2]
[400651193,1767767441329,-500.0,0.00013699,2]
[400651194,1767767441338,-492310.582829,0.00013699,2]
[400651195,1767767441348,-500.0,0.00013699,2]
[400651196,1767767441357,-500.0,0.00013699,2]
[400651197,1767767441366,-500.0,0.00013699,2]
[400651198,1767767441375,-500.0,0.00013699,2]
[400651199,1767767441384,-500.0,0.00013699,2]
[400651200,1767767441395,-500.0,0.00013699,2]
[400651201,1767767441404,-500.0,0.00013699,2]
[400651202,1767767441414,-500.0,0.00013699,2]
[400651203,1767767441423,-385.05374254,0.00013699,2]
[400651204,1767767441432,-794.0,0.00013713,2]
[400651205,1767767441441,-1000.0,0.00013821,2]
[400651206,1767767441451,-1000.0,0.00013821,2]
[400651207,1767767441460,-1000.0,0.00013821,2]
[400651208,1767767441469,-1000.0,0.00013821,2]
[400651209,1767767441479,-1000.0,0.00013821,2]
[400651210,1767767441488,-1000.0,0.00013821,2]
[400651211,1767767441497,-1000.0,0.00013821,2]
[400651212,1767767441506,-1000.0,0.00013821,2]
[400651213,1767767441516,-1000.0,0.00013821,2]
[400651214,1767767441525,-794.0,0.0001385,2]
[400651215,1767767441534,-11429.0,0.0001386,2]
[400651216,1767767441543,-379.50971857,0.00013892,2]
[400651217,1767767441552,-420.0,0.00013928,2]
[400651218,1767767441561,-285.0,0.00013928,2]
[400651219,1767767441570,-794.0,0.00013987,2]
[400651220,1767767441579,-794.0,0.00014124,2]
[400651221,1767767441588,-240.32751735,0.00014175,2]
[400651222,1767767441597,-382.32951766,0.00014175,2]
[400651223,1767767441606,-600.0,0.00014221,2]
[400651224,1767767441615,-312.4152694,0.00014247,2]
[400651225,1767767441623,-1000.0,0.00014247,2]
[400651226,1767767441634,-1000.0,0.00014247,2]
[400651227,1767767441643,-1000.0,0.00014247,2]
[400651228,1767767441652,-1000.0,0.00014247,2]
[400651229,1767767441663,-1000.0,0.00014247,2]
[400651230,1767767441673,-1000.0,0.00014247,2]
[400651231,1767767441682,-1000.0,0.00014247,2]
[400651232,1767767441691,-794.0,0.00014261,2]
[400651233,1767767441701,-672.22882441,0.00014368,2]
[400651234,1767767441709,-1500.0,0.00014368,2]
[400651235,1767767441719,-1000.0,0.00014368,2]
[400651236,1767767441729,-1500.0,0.00014368,2]
[400651237,1767767441738,-1500.0,0.00014368,2]
[400651238,1767767441747,-1113.60271407,0.00014368,2]
[400651239,1767767441756,-1500.0,0.00014368,2]
[400651240,1767767441766,-1500.0,0.00014368,2]
[400651241,1767767441775,-794.0,0.00014398,2]
[400651242,1767767441784,-794.0,0.00014535,2]
[400651243,1767767441794,-720.0,0.0001458,2]
[400651244,1767767441803,-794.0,0.00014672,2]
[400651245,1767767441811,-255.54689828,0.00014696,2]
[400651246,1767767441821,-900.0,0.00014768,2]
[400651247,1767767441830,-1500.0,0.00014795,2]
[400651248,1767767441839,-1002.70184396,0.00014795,2]
[400651249,1767767441847,-152.05252624,0.00014795,2]
[400651250,1767767441857,-1500.0,0.00014795,2]
[400651251,1767767441865,-1500.0,0.00014795,2]
[400651252,1767767441884,-1500.0,0.00014795,2]
[400651253,1767767441893,-794.0,0.00014809,2]
[400651254,1767767441903,-594.48760347,0.000149,2]
[400651255,1767767441912,-2000.0,0.00014916,2]
[400651256,1767767441922,-2000.0,0.00014916,2]
[400651257,1767767441931,-2000.0,0.00014916,2]
[400651258,1767767441940,-2000.0,0.00014916,2]
[400651259,1767767441952,-2000.0,0.00014916,2]
[400651260,1767767441962,-794.0,0.00014946,2]
[400651261,1767767441973,-500.0,0.00015,2]
[400651262,1767767441984,-1000.0,0.00015,2]
[400651263,1767767441993,-1018.09986707,0.00015,2]
[400651264,1767767442004,-30798.91630509,0.00015,2]
[400651265,1767767442016,-150.8752938,0.00015,2]
[400651266,1767767442027,-502.26303891,0.00015,2]
[400651267,1767767442038,-96492.33818534,0.00015028,2]
[400651268,1767767442048,-215.630447,0.00015068,2]
[400651269,1767767442058,-800.0,0.00015068,2]
[400651270,1767767442067,-794.0,0.00015083,2]
[400651271,1767767442077,-794.0,0.0001522,2]
[400651272,1767767442086,-587.0,0.00015279,2]
[400651273,1767767442096,-1200.0,0.00015316,2]
[400651274,1767767442105,-1002.73058689,0.00015342,2]
[400651275,1767767442114,-636.08782837,0.00015342,2]
[400651276,1767767442123,-2000.0,0.00015342,2]
[400651277,1767767442133,-2000.0,0.00015342,2]
[400651278,1767767442142,-794.0,0.00015357,2]
[400651279,1767767442151,-500.0,0.00015464,2]
[400651280,1767767442304,-2500.0,0.00015464,2]
[400651281,1767767442316,-2500.0,0.00015464,2]
[400651282,1767767442327,-2500.0,0.00015464,2]
[400651283,1767767442336,-794.0,0.00015494,2]
[400651284,1767767442347,-553.74330225,0.00015577,3]
[400651285,1767767442356,-794.0,0.00015631,2]
[400651286,1767767442366,-804.0,0.00015768,2]
[400651287,1767767442375,-303.39831266,0.00015864,2]
[400651288,1767767442384,-2500.0,0.0001589,2]
[400651289,1767767442394,-2500.0,0.0001589,2]
[400651290,1767767442403,-11429.0,0.00015939,2]
[400651291,1767767442413,-215.68492171,0.00016,2]
[400651292,1767767442422,-3000.0,0.00016012,2]
[400651293,1767767442431,-3000.0,0.00016012,2]
[400651294,1767767442442,-864.0,0.00016039,2]
[400651295,1767767442451,-802.30074464,0.00016164,2]
[400651296,1767767442461,-8045.68317556,0.00016246,2]
[400651297,1767767442471,-3000.0,0.00016438,2]
[400651298,1767767442481,-3000.0,0.00016438,2]
[400651299,1767767442490,-3500.0,0.0001656,2]
[400651300,1767767442499,-3500.0,0.0001656,2]
[400651301,1767767442508,-5416.70070875,0.00016585,2]
[400651302,1767767442517,-294.52862852,0.00016696,2]
[400651303,1767767442526,-823.0,0.00016761,2]
[400651304,1767767442536,-250.0,0.00016776,2]
[400651305,1767767442545,-3500.0,0.00016986,2]
[400651306,1767767442555,-3500.0,0.00016986,2]
[400651307,1767767442563,-747.56989186,0.00017017,6]
[400651308,1767767442572,-4000.0,0.00017108,2]
[400651309,1767767442581,-4000.0,0.00017108,2]
[400651310,1767767442590,-2011.36258874,0.00017534,2]
[400651311,1767767442599,-2006.65794368,0.00017534,2]
[400651312,1767767442608,-1000.0,0.00017642,2]
[400651313,1767767442617,-510.09110971,0.00017656,2]
[400651314,1767767442628,-4500.0,0.00017656,2]
[400651315,1767767442637,-27429.36672841,0.00018,2]
[400651316,1767767442647,-31848.87772426,0.00018082,3]
[400651317,1767767442656,-5000.0,0.00018204,2]
[400651318,1767767442668,-623.0,0.00018387,2]
[400651319,1767767442677,-959.97339931,0.00018456,8]
[400651320,1767767442687,-215.630447,0.00018493,2]
[400651321,1767767442696,-333.51035877,0.00018696,2]